fUSD/lending_fUSD_20240802
["ID","MTS","AMOUNT","RATE_DAILY","PERIOD"]
[333886056,1722598268726,-1003.49,0.00019452,2]
[333886057,1722598268737,-2592.76,0.00019452,2]
[333886058,1722598268746,-4060.89,0.00019452,2]
[333886059,1722598268756,-1805.43,0.00019452,2]
[333886060,1722598268766,-500.0,0.00019452,2]
[333886061,1722598268779,-824.66,0.00019452,2]
[333886062,1722598268789,-500.0,0.00019452,2]
[333886063,1722598268800,-500.0,0.00019452,2]
[333886064,1722598268811,-500.0,0.00019452,2]
[333886065,1722598268821,-3005.65,0.00019452,2]
[333886066,1722598268831,-3542.91,0.00019452,2]
[333886067,1722598268841,-500.0,0.00019452,2]
[333886068,1722598268854,-500.0,0.00019452,2]
[333886069,1722598268864,-500.0,0.00019452,2]
[333886070,1722598268875,-500.0,0.00019452,2]
[333886071,1722598268885,-2967.2,0.00019452,2]
[333886072,1722598268895,-1159.14,0.00019452,2]
[333886073,1722598268905,-20000.0,0.00019452,2]
[333886074,1722598268915,-500.0,0.00019452,2]
[333886075,1722598268925,-500.0,0.00019452,2]
[333886076,1722598268934,-742.39,0.00019452,2]
[333886077,1722598268945,-560.11,0.00019452,2]
[333886078,1722598268955,-1394.57,0.00019452,2]
[333886079,1722598268965,-1201.54,0.00019452,2]
[333886080,1722598268976,-1510.12,0.00019452,2]
[333886081,1722598268986,-855.36,0.00019452,2]
[333886082,1722598268996,-1970.4,0.00019452,2]
[333886083,1722598269006,-500.0,0.00019452,2]
[333886084,1722598269015,-500.0,0.00019452,2]
[333886085,1722598269025,-500.0,0.00019452,2]
[333886086,1722598269035,-3403.25,0.00019452,2]
[333886087,1722598269045,-500.0,0.00019452,2]
[333886088,1722598269054,-2115.57,0.00019452,2]
[333886089,1722598269064,-639.03,0.00019452,2]
[333886090,1722598269075,-500.0,0.00019452,2]
[333886091,1722598269084,-1216.67,0.00019452,2]
[333886092,1722598269094,-500.0,0.00019452,2]
[333886093,1722598269106,-500.0,0.00019452,2]
[333886094,1722598269117,-1253.57,0.00019452,2]
[333886095,1722598269127,-500.0,0.00019452,2]
[333886096,1722598269138,-500.0,0.00019452,2]
[333886097,1722598269147,-2715.87,0.00019452,2]
[333886098,1722598269161,-2448.88,0.00019452,2]
[333886099,1722598269170,-3725.62,0.00019452,2]
[333886100,1722598269179,-500.0,0.00019452,2]
[333886101,1722598269189,-652.69,0.00019452,2]
[333886102,1722598269198,-1933.31,0.00019452,2]
[333886103,1722598269207,-500.0,0.00019452,2]
[333886104,1722598269217,-500.0,0.00019452,2]
[333886105,1722598269227,-797.05,0.00019452,2]
[333886106,1722598269236,-684.65,0.00019452,2]
[333886107,1722598269248,-500.0,0.00019452,2]
[333886108,1722598269259,-1477.1,0.00019452,2]
[333886109,1722598269269,-1161.79,0.00019452,2]
[333886110,1722598269278,-1725.57,0.00019452,2]
[333886111,1722598269288,-1625.53,0.00019452,2]
[333886112,1722598269297,-500.0,0.00019452,2]
[333886113,1722598269306,-500.0,0.00019452,2]
[333886114,1722598269317,-500.0,0.00019452,2]
[333886115,1722598269329,-1213.99,0.00019452,2]
[333886116,1722598269339,-4028.45,0.00019452,2]
[333886117,1722598269348,-1668.99,0.00019452,2]
[333886118,1722598269358,-500.0,0.00019452,2]
[333886119,1722598269368,-500.0,0.00019452,2]
[333886120,1722598269377,-1500.03,0.00019452,2]
[333886121,1722598269387,-166.24588014,0.00019452,2]
[333886122,1722598269396,-186.35441531,0.00019452,2]
[333886123,1722598269405,-500.0,0.00019452,2]
[333886124,1722598269415,-1863.5,0.00019452,2]
[333886125,1722598269425,-500.0,0.00019452,2]
[333886126,1722598269434,-2970.09,0.00019452,2]
[333886127,1722598269444,-1859.13,0.00019452,2]
[333886128,1722598269455,-500.0,0.00019452,2]
[333886129,1722598269464,-500.0,0.00019452,2]
[333886130,1722598269474,-500.0,0.00019452,2]
[333886131,1722598269483,-500.0,0.00019452,2]
[333886132,1722598269493,-500.0,0.00019452,2]
[333886133,1722598269503,-2642.95,0.00019452,2]
[333886134,1722598269512,-4617.73,0.00019452,2]
[333886135,1722598269521,-605.07,0.00019452,2]
[333886136,1722598269531,-510.96,0.00019452,2]
[333886137,1722598269541,-853.32,0.00019452,2]
[333886138,1722598269550,-500.0,0.00019452,2]
[333886139,1722598269559,-2158.83,0.00019452,2]
[333886140,1722598269574,-2969.49,0.00019452,2]
[333886141,1722598269583,-3829.76,0.00019452,2]
[333886142,1722598269593,-500.0,0.00019452,2]
[333886143,1722598269602,-500.0,0.00019452,2]
[333886144,1722598269611,-1050.89,0.00019452,2]
[333886145,1722598269622,-596.75,0.00019452,2]
[333886146,1722598269631,-500.0,0.00019452,2]
[333886147,1722598269642,-561.22,0.00019452,2]
[333886148,1722598269652,-500.0,0.00019452,2]
[333886149,1722598269661,-500.0,0.00019452,2]
[333886150,1722598269671,-305.89383089,0.00019452,2]
[333886151,1722598269680,-1000.0,0.00019452,2]
[333886152,1722598269690,-565.99,0.00019452,2]
[333886153,1722598269699,-500.0,0.00019452,2]
[333886154,1722598269709,-500.0,0.00019452,2]
[333886155,1722598269718,-500.0,0.00019452,2]
[333886156,1722598269728,-564.09984222,0.00019452,2]
[333886157,1722598269738,-288.63014941,0.00019452,2]
[333886158,1722598269748,-936.16,0.00019452,2]
[333886159,1722598269757,-922.02,0.00019452,2]
[333886160,1722598269767,-3701.17,0.00019452,2]
[333886161,1722598269781,-545.6,0.00019452,2]
[333886162,1722598269791,-3722.58,0.00019452,2]
[333886163,1722598269801,-500.0,0.00019452,2]
[333886164,1722598269811,-500.0,0.00019452,2]
[333886165,1722598269822,-1519.88,0.00019452,2]
[333886166,1722598269832,-500.0,0.00019452,2]
[333886167,1722598269841,-645.68,0.00019452,2]
[333886168,1722598269855,-1105.75,0.00019452,2]
[333886169,1722598269864,-1248.04,0.00019452,2]
[333886170,1722598269874,-634.27,0.00019452,2]
[333886171,1722598269883,-500.0,0.00019452,2]
[333886172,1722598269893,-500.0,0.00019452,2]
[333886173,1722598269903,-500.0,0.00019452,2]
[333886174,1722598269912,-2115.38,0.00019452,2]
[333886175,1722598269921,-661.54,0.00019452,2]
[333886176,1722598269931,-500.0,0.00019452,2]
[333886177,1722598269940,-500.0,0.00019452,2]
[333886178,1722598269950,-500.0,0.00019452,2]
[333886179,1722598269959,-4035.33,0.00019452,2]
[333886180,1722598269969,-500.0,0.00019452,2]
[333886181,1722598269978,-500.0,0.00019452,2]
[333886182,1722598269987,-500.0,0.00019452,2]
[333886183,1722598269997,-662.62,0.00019452,2]
[333886184,1722598270006,-1272.45,0.00019452,2]
[333886185,1722598270015,-500.0,0.00019452,2]
[333886186,1722598270025,-500.0,0.00019452,2]
[333886187,1722598270038,-500.0,0.00019452,2]
[333886188,1722598270048,-1978.94,0.00019452,2]
[333886189,1722598270057,-2785.34,0.00019452,2]
[333886190,1722598270068,-516.38,0.00019452,2]
[333886191,1722598270077,-500.0,0.00019452,2]
[333886192,1722598270088,-3943.97,0.00019452,2]
[333886193,1722598270098,-158.785305,0.00019452,2]
[333886194,1722598270107,-705.12,0.00019452,2]
[333886195,1722598270118,-1120.5,0.00019452,2]
[333886196,1722598270128,-500.0,0.00019452,2]
[333886197,1722598270139,-819.17,0.00019452,2]
[333886198,1722598270149,-528.56,0.00019452,2]
[333886199,1722598270160,-500.0,0.00019452,2]
[333886200,1722598270170,-715.862112,0.00019452,2]
[333886201,1722598270180,-1827.12,0.00019452,2]
[333886202,1722598270190,-500.0,0.00019452,2]
[333886203,1722598270199,-500.0,0.00019452,2]
[333886204,1722598270208,-1657.74,0.00019452,2]
[333886205,1722598270218,-158.785312,0.00019452,2]
[333886206,1722598270227,-1318.08,0.00019452,2]
[333886207,1722598270236,-2000.0,0.00019452,2]
[333886208,1722598270246,-2537.35,0.00019452,2]
[333886209,1722598270256,-715.862107,0.00019452,2]
[333886210,1722598270266,-4328.72,0.00019452,2]
[333886211,1722598270275,-1659.39,0.00019452,2]
[333886212,1722598270284,-500.0,0.00019452,2]
[333886213,1722598270294,-718.276491,0.00019452,2]
[333886214,1722598270303,-1966.6,0.00019452,2]
[333886215,1722598270312,-816.62,0.00019452,2]
[333886216,1722598270325,-500.0,0.00019452,2]
[333886217,1722598270334,-500.0,0.00019452,2]
[333886218,1722598270344,-718.37,0.00019452,2]
[333886219,1722598270353,-2793.88,0.00019452,2]
[333886220,1722598270363,-2224.95,0.00019452,2]
[333886221,1722598270372,-500.0,0.00019452,2]
[333886222,1722598270382,-718.276497,0.00019452,2]
[333886223,1722598270391,-682.15,0.00019452,2]
[333886224,1722598270401,-1884.35,0.00019452,2]
[333886225,1722598270410,-761.68,0.00019452,2]
[333886226,1722598270420,-500.0,0.00019452,2]
[333886227,1722598270429,-4661.52,0.00019452,2]
[333886228,1722598270439,-2878.16,0.00019452,2]
[333886229,1722598270448,-500.0,0.00019452,2]
[333886230,1722598270457,-500.0,0.00019452,2]
[333886231,1722598270467,-500.0,0.00019452,2]
[333886232,1722598270477,-500.0,0.00019452,2]
[333886233,1722598270486,-1130.92,0.00019452,2]
[333886234,1722598270496,-1667.77,0.00019452,2]
[333886235,1722598270505,-1599.85,0.00019452,2]
[333886236,1722598270514,-500.0,0.00019452,2]
[333886237,1722598270523,-2039.13,0.00019452,2]
[333886238,1722598270533,-2663.13,0.00019452,2]
[333886239,1722598270542,-1085.65,0.00019452,2]
[333886240,1722598270552,-1390.27,0.00019452,2]
[333886241,1722598270562,-683.4,0.00019452,2]
[333886242,1722598270572,-1042.76,0.00019452,2]
[333886243,1722598270582,-1365.28,0.00019452,2]
[333886244,1722598270591,-500.0,0.00019452,2]
[333886245,1722598270601,-649.28688228,0.00019452,2]
[333886246,1722598270610,-1385.86,0.00019452,2]
[333886247,1722598270619,-500.0,0.00019452,2]
[333886248,1722598270628,-1134.12,0.00019452,2]
[333886249,1722598270638,-606.3,0.00019452,2]
[333886250,1722598270647,-500.0,0.00019452,2]
[333886251,1722598270656,-500.0,0.00019452,2]
[333886252,1722598270666,-2386.7,0.00019452,2]
[333886253,1722598270675,-319.958704,0.00019452,2]
[333886254,1722598270684,-500.0,0.00019452,2]
[333886255,1722598270694,-500.0,0.00019452,2]
[333886256,1722598270703,-860.32,0.00019452,2]
[333886257,1722598270713,-2245.88,0.00019452,2]
[333886258,1722598270722,-2051.64,0.00019452,2]
[333886259,1722598270731,-500.0,0.00019452,2]
[333886260,1722598270741,-549.95936506,0.00019452,2]
[333886261,1722598270750,-2637.55,0.00019452,2]
[333886262,1722598270759,-2008.31,0.00019452,2]
[333886263,1722598270770,-1260.73,0.00019452,2]
[333886264,1722598270781,-500.0,0.00019452,2]
[333886265,1722598270791,-272.16,0.00019452,2]
[333886266,1722598270800,-668.1,0.00019452,2]
[333886267,1722598270811,-786.75,0.00019452,2]
[333886268,1722598270822,-3756.9,0.00019452,2]
[333886269,1722598270831,-940.98,0.00019452,2]
[333886270,1722598270994,-500.0,0.00019452,2]
[333886271,1722598271004,-4339.91,0.00019452,2]
[333886272,1722598271013,-500.0,0.00019452,2]
[333886273,1722598271022,-576.25,0.00019452,2]
[333886274,1722598271031,-272.16,0.00019452,2]
[333886275,1722598271040,-1810.11,0.00019452,2]
[333886276,1722598271049,-931.22,0.00019452,2]
[333886277,1722598271059,-805.11,0.00019452,2]
[333886278,1722598271069,-500.0,0.00019452,2]
[333886279,1722598271079,-500.0,0.00019452,2]
[333886280,1722598271091,-542.08926104,0.00019452,2]
[333886281,1722598271101,-500.0,0.00019452,2]
[333886282,1722598271110,-664.3,0.00019452,2]
[333886283,1722598271119,-500.0,0.00019452,2]
[333886284,1722598271128,-500.0,0.00019452,2]
[333886285,1722598271137,-2882.49,0.00019452,2]
[333886286,1722598271147,-521.52,0.00019452,2]
[333886287,1722598271156,-1079.92,0.00019452,2]
[333886288,1722598271165,-1333.98,0.00019452,2]
[333886289,1722598271174,-500.0,0.00019452,2]
[333886290,1722598271184,-786.39,0.00019452,2]
[333886291,1722598271193,-3609.47,0.00019452,2]
[333886292,1722598271202,-500.0,0.00019452,2]
[333886293,1722598271211,-500.0,0.00019452,2]
[333886294,1722598271221,-675.49,0.00019452,2]
[333886295,1722598271230,-2679.82,0.00019452,2]
[333886296,1722598271240,-1319.55,0.00019452,2]
[333886297,1722598271249,-500.0,0.00019452,2]
[333886298,1722598271259,-500.0,0.00019452,2]
[333886299,1722598271268,-151.0,0.00019452,2]
[333886300,1722598271277,-500.0,0.00019452,2]
[333886301,1722598271287,-500.0,0.00019452,2]
[333886302,1722598271296,-2528.37,0.00019452,2]
[333886303,1722598271306,-500.0,0.00019452,2]
[333886304,1722598271320,-500.0,0.00019452,2]
[333886305,1722598271330,-4058.06,0.00019452,2]
[333886306,1722598271341,-500.0,0.00019452,2]
[333886307,1722598271350,-2034.89,0.00019452,2]
[333886308,1722598271359,-500.0,0.00019452,2]
[333886309,1722598271369,-500.0,0.00019452,2]
[333886310,1722598271379,-3781.63,0.00019452,2]
[333886311,1722598271388,-500.0,0.00019452,2]
[333886312,1722598271397,-585.1,0.00019452,2]
[333886313,1722598271407,-2958.45,0.00019452,2]
[333886314,1722598271416,-500.0,0.00019452,2]
[333886315,1722598271426,-574.88,0.00019452,2]
[333886316,1722598271436,-1322.28,0.00019452,2]
[333886317,1722598271446,-932.0,0.00019452,2]
[333886318,1722598271456,-534.31,0.00019452,2]
[333886319,1722598271465,-500.0,0.00019452,2]
[333886320,1722598271475,-500.0,0.00019452,2]
[333886321,1722598271484,-500.0,0.00019452,2]
[333886322,1722598271494,-500.0,0.00019452,2]
[333886323,1722598271503,-1063.3,0.00019452,2]
[333886324,1722598271512,-1944.95,0.00019452,2]
[333886325,1722598271522,-500.0,0.00019452,2]
[333886326,1722598271532,-1338.52,0.00019452,2]
[333886327,1722598271542,-3281.92,0.00019452,2]
[333886328,1722598271552,-761.9,0.00019452,2]
[333886329,1722598271561,-500.0,0.00019452,2]
[333886330,1722598271572,-1118.49,0.00019452,2]
[333886331,1722598271582,-500.0,0.00019452,2]
[333886332,1722598271591,-1689.5,0.00019452,2]
[333886333,1722598271600,-500.0,0.00019452,2]
[333886334,1722598271610,-567.78,0.00019452,2]
[333886335,1722598271619,-500.0,0.00019452,2]
[333886336,1722598271629,-1129.58,0.00019452,2]
[333886337,1722598271638,-500.0,0.00019452,2]
[333886338,1722598271647,-500.0,0.00019452,2]
[333886339,1722598271657,-500.0,0.00019452,2]
[333886340,1722598271666,-1165.9,0.00019452,2]
[333886341,1722598271676,-500.0,0.00019452,2]
[333886342,1722598271685,-5131.34,0.00019452,2]
[333886343,1722598271695,-1564.4,0.00019452,2]
[333886344,1722598271704,-3472.72,0.00019452,2]
[333886345,1722598271714,-605.16,0.00019452,2]
[333886346,1722598271723,-2482.19152986,0.00019452,2]
[333886347,1722598272900,-1247.16847014,0.00019452,2]
[333886348,1722598272909,-1998.53152986,0.00019452,2]
[333886349,1722598272920,-68.36847014,0.00019452,2]
[333886350,1722598272930,-500.0,0.00019452,2]
[333886351,1722598272940,-476.42652986,0.00019452,2]
[333886352,1722598272951,-440.96864,0.00019452,2]
[333886353,1722598273929,-340.13,0.00010676,2]
[333886354,1722598273939,-340.13,0.0001294,2]
[333886355,1722598273949,-340.13,0.00015203,2]
[333886356,1722598273958,-340.13,0.00017467,2]
[333886357,1722598273968,-569.207007,0.00019178,2]
[333886358,1722598274129,-488.8693757,0.00019178,2]
[333886359,1722598274211,-500.57827625,0.00019178,2]
[333886360,1722598274222,-1579.76234805,0.00019178,2]
[333886361,1722598274232,-569.207007,0.00019178,2]
[333886362,1722598274242,-2569.21,0.00019178,2]
[333886363,1722598274251,-2569.21,0.00019178,2]
[333886364,1722598274261,-569.207007,0.00019178,2]
[333886365,1722598274271,-1826.34060195,0.00019178,2]
[333886366,1722598275569,-155.0,0.00018471,2]
[333886367,1722598275579,-742.86939805,0.00019178,2]
[333886368,1722598275588,-2569.21,0.00019178,2]
[333886369,1722598275598,-569.207007,0.00019178,2]
[333886370,1722598275607,-752.10327224,0.00019178,2]
[333886371,1722598275618,-383.87296915,0.00019178,2]
[333886372,1722598275630,-295.25514135,0.00019178,2]
[333886373,1722598275641,-1137.97861726,0.00019178,2]
[333886374,1722598275650,-569.207007,0.00019178,2]
[333886375,1722598275659,-772.78522186,0.00019178,2]
[333886376,1722598275671,-1796.42477814,0.00019178,2]
[333886377,1722598275680,-510.45338101,0.00019178,2]
[333886378,1722598275691,-85.92661899,0.00019178,2]
[333886379,1722598275701,-683.12988904,0.00019178,2]
[333886380,1722598275713,-684.36699985,0.00019178,2]
[333886381,1722598275726,-5532.50311111,0.00019178,2]
[333886382,1722598275737,-2569.21,0.00019178,2]
[333886383,1722598275749,-352.89545193,0.00019178,2]
[333886384,1722598275759,-2569.21,0.00019178,2]
[333886385,1722598275769,-569.207007,0.00019178,2]
[333886386,1722598275782,-2569.21,0.00019178,2]
[333886387,1722598275793,-569.207007,0.00019178,2]
[333886388,1722598275803,-2569.21,0.00019178,2]
[333886389,1722598275813,-569.207007,0.00019178,2]
[333886390,1722598275823,-2569.21,0.00019178,2]
[333886391,1722598275833,-569.207007,0.00019178,2]
[333886392,1722598275842,-500.0,0.00019178,2]
[333886393,1722598275853,-569.207007,0.00019178,2]
[333886394,1722598275864,-2569.21,0.00019178,2]
[333886395,1722598275874,-2569.21,0.00019178,2]
[333886396,1722598275883,-569.207007,0.00019178,2]
[333886397,1722598275892,-569.207007,0.00019178,2]
[333886398,1722598275902,-1733.36,0.00019178,2]
[333886399,1722598275913,-500.0,0.00019178,2]
[333886400,1722598275922,-569.207007,0.00019178,2]
[333886401,1722598275933,-569.207007,0.00019178,2]
[333886402,1722598275943,-535.42562793,0.0001924,2]
[333886403,1722598275954,-569.207007,0.0001945,2]
[333886404,1722598275966,-569.207009,0.0001945,2]
[333886405,1722598275976,-2569.21,0.00019451,2]
[333886406,1722598275986,-2569.21,0.00019451,2]
[333886407,1722598275998,-2569.21,0.00019451,2]
[333886408,1722598276009,-2569.21,0.00019451,2]
[333886409,1722598276019,-2569.21,0.00019451,2]
[333886410,1722598276031,-1065.30483014,0.00019452,2]
[333886411,1722598276042,-500.0,0.00019452,2]
[333886412,1722598276051,-500.0,0.00019452,2]
[333886413,1722598276061,-500.0,0.00019452,2]
[333886414,1722598276071,-2293.65,0.00019452,2]
[333886415,1722598276080,-875.27,0.00019452,2]
[333886416,1722598276090,-2218.13,0.00019452,2]
[333886417,1722598276099,-1751.91,0.00019452,2]
[333886418,1722598276109,-500.0,0.00019452,2]
[333886419,1722598276118,-500.0,0.00019452,2]
[333886420,1722598276128,-906.49,0.00019452,2]
[333886421,1722598276138,-2707.11,0.00019452,2]
[333886422,1722598276147,-500.0,0.00019452,2]
[333886423,1722598276157,-3482.53,0.00019452,2]
[333886424,1722598276166,-1113.96,0.00019452,2]
[333886425,1722598276175,-717.97,0.00019452,2]
[333886426,1722598276185,-195.23574784,0.00019452,2]
[333886427,1722598276196,-500.0,0.00019452,2]
[333886428,1722598276206,-727.39,0.00019452,2]
[333886429,1722598276216,-5190.94,0.00019452,2]
[333886430,1722598276226,-915.46,0.00019452,2]
[333886431,1722598276237,-500.0,0.00019452,2]
[333886432,1722598276247,-500.0,0.00019452,2]
[333886433,1722598276257,-1935.39,0.00019452,2]
[333886434,1722598276266,-823.23,0.00019452,2]
[333886435,1722598276275,-500.0,0.00019452,2]
[333886436,1722598276286,-500.0,0.00019452,2]
[333886437,1722598276297,-500.0,0.00019452,2]
[333886438,1722598276307,-998.13,0.00019452,2]
[333886439,1722598276317,-500.0,0.00019452,2]
[333886440,1722598276327,-500.0,0.00019452,2]
[333886441,1722598276336,-3407.7,0.00019452,2]
[333886442,1722598276346,-465.170474,0.00019452,2]
[333886443,1722598276356,-504.8,0.00019452,2]
[333886444,1722598276366,-572.4,0.00019452,2]
[333886445,1722598276375,-2141.12,0.00019452,2]
[333886446,1722598276386,-500.0,0.00019452,2]
[333886447,1722598276396,-1551.05,0.00019452,2]
[333886448,1722598276406,-500.0,0.00019452,2]
[333886449,1722598276416,-465.170475,0.00019452,2]
[333886450,1722598276426,-500.0,0.00019452,2]
[333886451,1722598276436,-500.0,0.00019452,2]
[333886452,1722598276446,-1905.43,0.00019452,2]
[333886453,1722598276456,-500.0,0.00019452,2]
[333886454,1722598276467,-1153.9,0.00019452,2]
[333886455,1722598276477,-500.0,0.00019452,2]
[333886456,1722598276487,-500.0,0.00019452,2]
[333886457,1722598276497,-500.0,0.00019452,2]
[333886458,1722598276507,-500.0,0.00019452,2]
[333886459,1722598276518,-500.0,0.00019452,2]
[333886460,1722598276529,-2883.27,0.00019452,2]
[333886461,1722598276538,-1228.84,0.00019452,2]
[333886462,1722598276548,-762.22,0.00019452,2]
[333886463,1722598276558,-542.35,0.00019452,2]
[333886464,1722598276568,-790.12,0.00019452,2]
[333886465,1722598276578,-2754.37,0.00019452,2]
[333886466,1722598276587,-1455.23,0.00019452,2]
[333886467,1722598276597,-4334.21,0.00019452,2]
[333886468,1722598276606,-500.0,0.00019452,2]
[333886469,1722598276616,-1566.98,0.00019452,2]
[333886470,1722598276626,-500.0,0.00019452,2]
[333886471,1722598276636,-500.0,0.00019452,2]
[333886472,1722598276646,-500.0,0.00019452,2]
[333886473,1722598276655,-630.95,0.00019452,2]
[333886474,1722598276664,-1144.57,0.00019452,2]
[333886475,1722598276674,-500.0,0.00019452,2]
[333886476,1722598276686,-500.0,0.00019452,2]
[333886477,1722598276696,-2505.71,0.00019452,2]
[333886478,1722598276707,-546.25,0.00019452,2]
[333886479,1722598276716,-500.0,0.00019452,2]
[333886480,1722598276727,-555.0,0.00019452,2]
[333886481,1722598276738,-2415.45,0.00019452,2]
[333886482,1722598276747,-1498.58,0.00019452,2]
[333886483,1722598276756,-966.55,0.00019452,2]
[333886484,1722598276765,-1275.76,0.00019452,2]
[333886485,1722598276775,-500.0,0.00019452,2]
[333886486,1722598276787,-500.0,0.00019452,2]
[333886487,1722598276797,-874.16,0.00019452,2]
[333886488,1722598276807,-2082.88,0.00019452,2]
[333886489,1722598277251,-500.0,0.00019452,2]
[333886490,1722598277262,-3440.13,0.00019452,2]
[333886491,1722598277271,-500.0,0.00019452,2]
[333886492,1722598277281,-2547.52,0.00019452,2]
[333886493,1722598277290,-618.8,0.00019452,2]
[333886494,1722598277299,-500.0,0.00019452,2]
[333886495,1722598277308,-500.0,0.00019452,2]
[333886496,1722598277318,-500.0,0.00019452,2]
[333886497,1722598277327,-2830.55,0.00019452,2]
[333886498,1722598277337,-1231.97,0.00019452,2]
[333886499,1722598277346,-500.0,0.00019452,2]
[333886500,1722598277355,-577.51,0.00019452,2]
[333886501,1722598277365,-500.0,0.00019452,2]
[333886502,1722598277375,-500.0,0.00019452,2]
[333886503,1722598277385,-500.0,0.00019452,2]
[333886504,1722598277396,-500.0,0.00019452,2]
[333886505,1722598277405,-690.27,0.00019452,2]
[333886506,1722598277415,-3726.31,0.00019452,2]
[333886507,1722598277424,-500.0,0.00019452,2]
[333886508,1722598277434,-2147.99,0.00019452,2]
[333886509,1722598277444,-500.0,0.00019452,2]
[333886510,1722598277453,-500.0,0.00019452,2]
[333886511,1722598277463,-1097.39,0.00019452,2]
[333886512,1722598277472,-3042.35,0.00019452,2]
[333886513,1722598277481,-799.13,0.00019452,2]
[333886514,1722598277491,-500.0,0.00019452,2]
[333886515,1722598277500,-500.0,0.00019452,2]
[333886516,1722598277511,-2128.39,0.00019452,2]
[333886517,1722598277520,-1190.83,0.00019452,2]
[333886518,1722598277530,-3001.5,0.00019452,2]
[333886519,1722598277539,-2074.35,0.00019452,2]
[333886520,1722598277549,-500.0,0.00019452,2]
[333886521,1722598277558,-549.08,0.00019452,2]
[333886522,1722598277569,-500.0,0.00019452,2]
[333886523,1722598277578,-500.0,0.00019452,2]
[333886524,1722598277588,-500.0,0.00019452,2]
[333886525,1722598277597,-2129.23,0.00019452,2]
[333886526,1722598277607,-500.0,0.00019452,2]
[333886527,1722598277616,-1878.23,0.00019452,2]
[333886528,1722598277626,-169.827954,0.00019452,2]
[333886529,1722598277636,-500.0,0.00019452,2]
[333886530,1722598277645,-2644.91,0.00019452,2]
[333886531,1722598277655,-500.0,0.00019452,2]
[333886532,1722598277664,-169.827957,0.00019452,2]
[333886533,1722598277673,-1101.86,0.00019452,2]
[333886534,1722598277682,-856.91,0.00019452,2]
[333886535,1722598277692,-213.18624391,0.00019452,2]
[333886536,1722598277701,-500.0,0.00019452,2]
[333886537,1722598277711,-500.0,0.00019452,2]
[333886538,1722598277720,-3963.34,0.00019452,2]
[333886539,1722598277729,-847.17,0.00019452,2]
[333886540,1722598277738,-1021.96,0.00019452,2]
[333886541,1722598277748,-2127.18,0.00019452,2]
[333886542,1722598277758,-500.0,0.00019452,2]
[333886543,1722598277767,-500.0,0.00019452,2]
[333886544,1722598277779,-500.0,0.00019452,2]
[333886545,1722598277790,-1850.84,0.00019452,2]
[333886546,1722598277799,-1824.18,0.00019452,2]
[333886547,1722598277809,-500.0,0.00019452,2]
[333886548,1722598277820,-151.0,0.00019452,2]
[333886549,1722598277829,-500.0,0.00019452,2]
[333886550,1722598277839,-1442.91,0.00019452,2]
[333886551,1722598277849,-500.0,0.00019452,2]
[333886552,1722598277860,-1000.73,0.00019452,2]
[333886553,1722598277871,-500.0,0.00019452,2]
[333886554,1722598277881,-500.0,0.00019452,2]
[333886555,1722598277890,-500.0,0.00019452,2]